[Event "11th Dolomiti Open 2020"]
[Site "Forni di Sopra"]
[Date "2020.09.30"]
[Round "6.7"]
[White "Bordignon, Angelo"]
[Black "Cumming, Rhys"]
[Result "0-1"]
[ECO "A30"]
[WhiteElo "2024"]
[BlackElo "2299"]
[Annotator "ChessBase"]
[PlyCount "54"]
[EventDate "2020.09.26"]
[EventType "swiss"]
[EventCountry "ITA"]
[SourceTitle "playchess.com"]
[Source "ChessBase"]
[SourceQuality "1"]
[TimeControl "40/5400+30:1800+30"]

1. Nf3 {[%emt 0:00:00]} c5 {[%emt 0:02:34]} 2. c4 {[%emt 0:00:15]} Nc6 {[%emt 0:01:13]} 3. g3 {[%emt 0:03:55]} g6 {[%emt 0:00:50]} 4. Bg2 {[%emt 0:00:32]} Bg7 {[%emt 0:00:06]} 5. O-O {[%emt 0:00:19]} e6 {[%emt 0:01:02]} 6. e3 {[%emt 0:03:51]} Nge7 {[%emt 0:00:23]} 7. d3 {[%emt 0:04:05]} O-O {[%emt 0:00:42]} 8. a3 {[%emt 0:01:13]} d5 {[%emt 0:05:29]} 9. Nbd2 {[%emt 0:00:59]} Rb8 {[%emt 0:16:11]} 10. Rb1 {[%emt 0:01:13]} dxc4 {[%emt 0:06:50]} 11. dxc4 {[%emt 0:01:12]} Qd3 {[%emt 0:06:10]} 12. Re1 {[%emt 0:19:19]} e5 {[%emt 0:09:58]} 13. Nd4 {[%emt 0:03:57]} Nxd4 {[%emt 0:03:18]} 14. Be4 {[%emt 0:00:11]} Ne2+ {[%emt 0:01:06]} 15. Qxe2 {[%emt 0:02:24]} Qxe2 {[%emt 0:02:40]} 16. Rxe2 {[%emt 0:00:06]} f5 {[%emt 0:01:16]} 17. Bg2 {[%emt 0:01:47]} Be6 {[%emt 0:04:37]} 18. Re1 {[%emt 0:03:16]} e4 {[%emt 0:05:59]} 19. f3 {[%emt 0:00:34]} exf3 {[%emt 0:00:05]} 20. Bxf3 {[%emt 0:00:31]} Nc6 {[%emt 0:01:27]} 21. b3 {[%emt 0:07:00]} Rfd8 {[%emt 0:03:25]} 22. Nf1 {[%emt 0:02:40]} Ne5 {[%emt 0:06:09]} 23. Be2 {[%emt 0:04:16]} Bd7 {[%emt 0:00:15]} 24. b4 {[%emt 0:10:24]} Ba4 {[%emt 0:02:13]} 25. bxc5 {[%emt 0:01:54]} Bc2 {[%emt 0:01:09]} 26. Rb5 {[%emt 0:01:15]} Bd3 {[%emt 0:02:00]} 27. Bxd3 {[%emt 0:01:53]} Nf3+ {[%emt 0:00:40]} 0-1

[Event "11th Dolomiti Open 2020"]
[Site "Forni di Sopra"]
[Date "2020.09.30"]
[Round "6.8"]
[White "Fecker, Noah"]
[Black "Lunn, Matthew"]
[Result "1-0"]
[ECO "B61"]
[WhiteElo "2345"]
[BlackElo "2044"]
[Annotator "ChessBase"]
[PlyCount "57"]
[EventDate "2020.09.26"]
[EventType "swiss"]
[EventCountry "ITA"]
[SourceTitle "playchess.com"]
[Source "ChessBase"]
[SourceQuality "1"]
[TimeControl "40/5400+30:1800+30"]

1. e4 {[%emt 0:00:00]} c5 {[%emt 0:00:00]} 2. Nf3 {[%emt 0:00:00]} Nc6 {[%emt 0:00:00]} 3. d4 {[%emt 0:00:00]} cxd4 {[%emt 0:00:03]} 4. Nxd4 {[%emt 0:00:00]} Nf6 {[%emt 0:00:11]} 5. Nc3 {[%emt 0:00:06]} d6 {[%emt 0:00:13]} 6. Bg5 {[%emt 0:01:42]} Bd7 {[%emt 0:00:28]} 7. Qd2 {[%emt 0:03:14]} Rc8 {[%emt 0:00:37]} 8. f4 {[%emt 0:01:27]} Nxd4 {[%emt 0:01:12]} 9. Qxd4 {[%emt 0:00:05]} Qa5 {[%emt 0:00:23]} 10. e5 {[%emt 0:01:18]} dxe5 {[%emt 0:01:09]} 11. fxe5 {[%emt 0:00:35]} e6 {[%emt 0:01:00]} 12. O-O-O {[%emt 0:01:44]} Bc6 {[%emt 0:01:44]} 13. Nb5 {[%emt 0:00:28]} Bxb5 {[%emt 0:02:21]} 14. exf6 {[%emt 0:00:12]} Bc6 {[%emt 0:01:35]} 15. h4 {[%emt 0:00:46]} g6 {[%emt 0:01:57]} 16. Bc4 {[%emt 0:00:57]} Bc5 {[%emt 0:02:33]} 17. Qe5 {[%emt 0:00:19]} Bb6 {[%emt 0:05:24]} 18. Qd6 {[%emt 0:00:21]} Bc5 {[%emt 0:04:35]} 19. Qg3 {[%emt 0:04:14]} Qb4 {[%emt 0:21:41]} 20. Bxe6 {[%emt 0:16:38]} fxe6 {[%emt 0:04:30]} 21. f7+ {[%emt 0:01:25]} Kxf7 {[%emt 0:05:51]} 22. Rhf1+ {[%emt 0:12:17]} Kg8 {[%emt 0:03:08]} 23. Qe5 {[%emt 0:01:03]} Qc4 {[%emt 0:09:30]} 24. Bh6 {[%emt 0:09:30]} Be3+ {[%emt 0:04:01]} 25. Qxe3 {[%emt 0:00:55]} Bf3 {[%emt 0:10:50]} 26. Rd8+ {[%emt 0:00:18]} Rxd8 {[%emt 0:01:13]} 27. Qxf3 {[%emt 0:00:15]} Qc7 {[%emt 0:03:00]} 28. Qf8+ {[%emt 0:00:06]} Rxf8 {[%emt 0:00:03]} 29. Rxf8# {[%emt 0:00:05]} 1-0

[Event "11th Dolomiti Open 2020"]
[Site "Forni di Sopra"]
[Date "2020.09.30"]
[Round "6.9"]
[White "Bisignano, Giuseppe"]
[Black "Ranfagni, Stefano"]
[Result "1-0"]
[ECO "C43"]
[WhiteElo "1818"]
[BlackElo "1844"]
[Annotator "NA"]
[PlyCount "74"]
[EventDate "2020.09.26"]
[EventType "swiss"]
[EventCountry "ITA"]
[SourceTitle "playchess.com"]
[Source "ChessBase"]
[SourceQuality "1"]
[TimeControl "40/5400+30:1800+30"]

1. e4 {[%emt 0:00:00]} e5 {[%emt 0:00:00]} 2. Nf3 {[%emt 0:00:00]} Nf6 {[%emt 0:00:00]} 3. d4 {[%emt 0:00:00]} Nxe4 {[%emt 0:00:00]} 4. dxe5 {[%emt 0:00:10]} d5 {[%emt 0:00:56]} 5. Bd3 {[%emt 0:01:50]} Nc5 {[%emt 0:01:59]} 6. Be2 {[%emt 0:00:28]} Be7 {[%emt 0:01:14]} 7. O-O {[%emt 0:00:27]} Nc6 {[%emt 0:01:47]} 8. Be3 {[%emt 0:02:30]} Ne6 {[%emt 0:01:56]} 9. Bb5 {[%emt 0:02:43]} a6 {[%emt 0:01:43]} 10. Bxc6+ {[%emt 0:00:12]} bxc6 {[%emt 0:00:07]} 11. c4 {[%emt 0:01:47]} Bb7 {[%emt 0:02:55]} 12. Qb3 {[%emt 0:02:32]} Qc8 {[%emt 0:03:14]} 13. Nc3 {[%emt 0:02:13]} dxc4 {[%emt 0:03:51]} 14. Qxc4 {[%emt 0:00:09]} O-O {[%emt 0:00:20]} 15. b4 {[%emt 0:05:18]} a5 {[%emt 0:03:34]} 16. Qg4 {[%emt 0:11:36]} axb4 {[%emt 0:03:00]} 17. Ne4 {[%emt 0:00:07]} f5 {[%emt 0:02:43]} 18. exf6 {[%emt 0:00:33]} Bxf6 {[%emt 0:00:08]} 19. Nxf6+ {[%emt 0:00:55]} Rxf6 {[%emt 0:00:09]} 20. Ne5 {[%emt 0:04:00]} Nf4 {[%emt 0:10:27]} 21. Rfd1 {[%emt 0:13:19]} Nd5 {[%emt 0:06:41]} 22. Qc4 {[%emt 0:01:29]} Qe6 {[%emt 0:04:10]} 23. Bd4 {[%emt 0:03:28]} Rf4 {[%emt 0:09:49]} 24. Re1 {[%emt 0:02:00]} Qd6 {[%emt 0:06:45]} 25. Rad1 {[%emt 0:05:50]} c5 {[%emt 0:04:34]} 26. Qxc5 {[%emt 0:02:06]} Qxc5 {[%emt 0:00:13]} 27. Bxc5 {[%emt 0:00:03]} Rxa2 {[%emt 0:00:20]} 28. Nd3 {[%emt 0:02:10]} Rg4 {[%emt 0:05:50]} 29. Re8+ {[%emt 0:00:48]} Kf7 {[%emt 0:00:12]} 30. Rb8 {[%emt 0:00:08]} Rxg2+ {[%emt 0:07:42]} 31. Kxg2 {[%emt 0:00:36]} Ne3+ {[%emt 0:00:10]} 32. Kg1 {[%emt 0:05:30]} Nxd1 {[%emt 0:00:29]} 33. Rxb7 {[%emt 0:00:13]} Ra1 {[%emt 0:00:41]} 34. Kg2 {[%emt 0:01:09]} b3 {[%emt 0:01:23]} 35. Rxb3 {[%emt 0:00:29]} Ke6 {[%emt 0:00:28]} 36. Bd4 {[%emt 0:00:32]} Ra4 {[%emt 0:00:30]} 37. Nc5+ {[%emt 0:00:05]} Kd5 {[%emt 0:18:30]} 1-0

[Event "11th Dolomiti Open 2020"]
[Site "Forni di Sopra"]
[Date "2020.09.30"]
[Round "6.10"]
[White "Giorgi, Ezio Alberto"]
[Black "Ollari, Luca"]
[Result "0-1"]
[ECO "A48"]
[WhiteElo "1752"]
[BlackElo "1826"]
[Annotator "NA"]
[PlyCount "78"]
[EventDate "2020.09.26"]
[EventType "swiss"]
[EventCountry "ITA"]
[SourceTitle "playchess.com"]
[Source "ChessBase"]
[SourceQuality "1"]
[TimeControl "40/5400+30:1800+30"]

1. d4 {[%emt 0:00:00]} Nf6 {[%emt 0:00:00]} 2. Bf4 {[%emt 0:00:00]} g6 {[%emt 0:00:00]} 3. Nf3 {[%emt 0:00:00]} Bg7 {[%emt 0:00:00]} 4. e3 {[%emt 0:00:02]} O-O {[%emt 0:00:00]} 5. h3 {[%emt 0:00:09]} c5 {[%emt 0:00:00]} 6. c3 {[%emt 0:00:22]} d6 {[%emt 0:00:00]} 7. Nbd2 {[%emt 0:00:18]} Nc6 {[%emt 0:00:21]} 8. Be2 {[%emt 0:00:19]} Be6 {[%emt 0:00:05]} 9. O-O {[%emt 0:01:24]} Qb6 {[%emt 0:00:31]} 10. Qc2 {[%emt 0:00:49]} Rac8 {[%emt 0:00:17]} 11. dxc5 {[%emt 0:05:05]} Qxc5 {[%emt 0:01:02]} 12. Qd1 {[%emt 0:08:04]} Qb6 {[%emt 0:07:25]} 13. Qb1 {[%emt 0:03:56]} Nd5 {[%emt 0:07:59]} 14. Bh2 {[%emt 0:02:22]} a5 {[%emt 0:09:41]} 15. e4 {[%emt 0:03:18]} Nf6 {[%emt 0:02:28]} 16. Bf4 {[%emt 0:03:12]} h6 {[%emt 0:05:19]} 17. Be3 {[%emt 0:00:27]} Qc7 {[%emt 0:00:11]} 18. Bb5 {[%emt 0:05:24]} Nd7 {[%emt 0:02:03]} 19. Nd4 {[%emt 0:02:57]} Nxd4 {[%emt 0:03:29]} 20. cxd4 {[%emt 0:02:35]} Nf6 {[%emt 0:03:53]} 21. Rc1 {[%emt 0:02:59]} Qb6 {[%emt 0:05:59]} 22. Qd3 {[%emt 0:00:20]} d5 {[%emt 0:01:13]} 23. e5 {[%emt 0:01:25]} Nd7 {[%emt 0:00:36]} 24. a4 {[%emt 0:03:08]} Nb8 {[%emt 0:02:12]} 25. Qa3 {[%emt 0:04:31]} Nc6 {[%emt 0:00:12]} 26. Nb3 {[%emt 0:05:41]} Nb4 {[%emt 0:05:50]} 27. Nc5 {[%emt 0:02:21]} Kh7 {[%emt 0:15:24]} 28. Bd7 {[%emt 0:04:51]} Rc7 {[%emt 0:05:08]} 29. Nxe6 {[%emt 0:07:06]} Rxc1+ {[%emt 0:05:33]} 30. Rxc1 {[%emt 0:00:33]} fxe6 {[%emt 0:00:07]} 31. Rc5 {[%emt 0:02:33]} Rd8 {[%emt 0:01:51]} 32. Bb5 {[%emt 0:00:20]} Bxe5 {[%emt 0:02:24]} 33. dxe5 {[%emt 0:00:52]} d4 {[%emt 0:00:07]} 34. Bxd4 {[%emt 0:00:27]} Rxd4 {[%emt 0:00:08]} 35. Rc8 {[%emt 0:07:37]} Rd1+ {[%emt 0:02:13]} 36. Bf1 {[%emt 0:00:29]} Qa6 {[%emt 0:02:22]} 37. f3 {[%emt 0:03:31]} Qxf1+ {[%emt 0:00:40]} 38. Kh2 {[%emt 0:00:05]} Qh1+ {[%emt 0:00:24]} 39. Kg3 {[%emt 0:19:58]} Qe1+ {[%emt 0:00:11]} 0-1

[Event "11th Dolomiti Open 2020"]
[Site "Forni di Sopra"]
[Date "2020.10.01"]
[Round "7.2"]
[White "Blohberger, Felix"]
[Black "Heberla, Bartlomiej"]
[Result "1/2-1/2"]
[ECO "C13"]
[WhiteElo "2467"]
[BlackElo "2566"]
[Annotator "ChessBase"]
[PlyCount "46"]
[EventDate "2020.09.26"]
[EventType "swiss"]
[EventCountry "ITA"]
[SourceTitle "playchess.com"]
[Source "ChessBase"]
[SourceQuality "1"]
[TimeControl "40/5400+30:1800+30"]

1. e4 {[%emt 0:00:00]} e6 {[%emt 0:10:15]} 2. d4 {[%emt 0:00:00]} d5 {[%emt 0:00:02]} 3. Nc3 {[%emt 0:00:00]} dxe4 {[%emt 0:00:07]} 4. Nxe4 {[%emt 0:00:05]} Nd7 {[%emt 0:00:04]} 5. c3 {[%emt 0:00:06]} Ngf6 {[%emt 0:00:06]} 6. Bd3 {[%emt 0:00:07]} Be7 {[%emt 0:05:04]} 7. Nf3 {[%emt 0:01:11]} O-O {[%emt 0:00:16]} 8. Qe2 {[%emt 0:03:09]} b6 {[%emt 0:03:46]} 9. Bg5 {[%emt 0:01:52]} Bb7 {[%emt 0:00:12]} 10. Nxf6+ {[%emt 0:07:38]} Bxf6 {[%emt 0:10:49]} 11. Bxf6 {[%emt 0:03:53]} Nxf6 {[%emt 0:02:26]} 12. O-O {[%emt 0:01:13]} Qe7 {[%emt 0:12:57]} 13. Ne5 {[%emt 0:12:30]} c5 {[%emt 0:00:38]} 14. dxc5 {[%emt 0:00:36]} Qd7 {[%emt 0:50:18]} 15. c6 Qxc6 {[%emt 0:00:00]} 16. Rac1 {[%emt 1:05:40]} Qc5 17. Rcd1 {[%emt 0:00:00]} Rad8 {[%emt 0:00:00]} 18. Bc2 {[%emt 0:00:00]} Rd5 {[%emt 0:00:00]} 19. Nf3 {[%emt 0:00:00]} Rfd8 {[%emt 0:00:00]} 20. Rxd5 {[%emt 0:00:00]} Rxd5 {[%emt 0:00:00]} 21. Rd1 {[%emt 0:00:00]} Kf8 {[%emt 0:00:00]} 22. Rd3 {[%emt 0:03:00]} Rd4 23. Rxd4 {[%emt 0:00:00]} Qd5 {[%emt 0:00:00]} 1/2-1/2

[Event "11th Dolomiti Open 2020"]
[Site "Forni di Sopra"]
[Date "2020.10.01"]
[Round "7.3"]
[White "Bellia, Fabrizio"]
[Black "Moroni, Luca Jr"]
[Result "0-1"]
[ECO "C76"]
[WhiteElo "2421"]
[BlackElo "2530"]
[Annotator "ChessBase"]
[PlyCount "168"]
[EventDate "2020.09.26"]
[EventType "swiss"]
[EventCountry "ITA"]
[SourceTitle "playchess.com"]
[Source "ChessBase"]
[SourceQuality "1"]
[TimeControl "40/5400+30:1800+30"]

1. e4 {[%emt 0:00:00]} e5 {[%emt 0:00:00]} 2. Nf3 {[%emt 0:00:00]} Nc6 {[%emt 0:00:00]} 3. Bb5 {[%emt 0:00:00]} a6 {[%emt 0:00:00]} 4. Ba4 {[%emt 0:00:00]} d6 {[%emt 0:00:00]} 5. O-O {[%emt 0:00:07]} Bd7 {[%emt 0:00:00]} 6. c3 {[%emt 0:00:08]} g6 {[%emt 0:00:00]} 7. d4 {[%emt 0:00:07]} Bg7 {[%emt 0:00:00]} 8. dxe5 {[%emt 0:00:05]} Nxe5 {[%emt 0:00:56]} 9. Nxe5 {[%emt 0:00:37]} dxe5 {[%emt 0:00:33]} 10. Bxd7+ {[%emt 0:00:52]} Qxd7 {[%emt 0:00:02]} 11. Qxd7+ {[%emt 0:00:08]} Kxd7 {[%emt 0:00:03]} 12. Na3 {[%emt 0:00:35]} Nf6 {[%emt 0:01:25]} 13. f3 {[%emt 0:01:13]} Ke6 {[%emt 0:01:24]} 14. Be3 {[%emt 0:02:25]} Rhd8 {[%emt 0:03:00]} 15. Rfd1 {[%emt 0:00:22]} Rxd1+ {[%emt 0:01:23]} 16. Rxd1 {[%emt 0:00:07]} Bf8 {[%emt 0:00:15]} 17. Nc4 {[%emt 0:00:55]} a5 {[%emt 0:00:13]} 18. a4 {[%emt 0:03:29]} Nd7 {[%emt 0:01:41]} 19. Kf1 {[%emt 0:06:57]} f6 {[%emt 0:00:39]} 20. Ke2 {[%emt 0:01:01]} Nc5 {[%emt 0:05:12]} 21. Bxc5 {[%emt 0:13:01]} Bxc5 {[%emt 0:00:12]} 22. Rd5 {[%emt 0:05:25]} b6 {[%emt 0:00:32]} 23. Rd1 {[%emt 0:00:14]} c6 {[%emt 0:03:14]} 24. Ra1 {[%emt 0:05:31]} f5 {[%emt 0:09:49]} 25. b3 {[%emt 0:17:21]} h5 {[%emt 0:06:12]} 26. Nb2 {[%emt 0:05:29]} f4 {[%emt 0:04:56]} 27. Nd3 {[%emt 0:02:27]} Be3 {[%emt 0:00:47]} 28. b4 {[%emt 0:06:42]} g5 {[%emt 0:04:01]} 29. h3 {[%emt 0:00:55]} axb4 {[%emt 0:10:36]} 30. cxb4 {[%emt 0:00:19]} Bd4 {[%emt 0:00:24]} 31. Ra2 {[%emt 0:00:51]} Kd6 {[%emt 0:02:55]} 32. Kd2 {[%emt 0:07:54]} Kc7 {[%emt 0:03:35]} 33. Ke2 {[%emt 0:07:32]} Kb7 {[%emt 0:04:06]} 34. Kd2 {[%emt 0:05:41]} Rg8 {[%emt 0:04:23]} 35. Ne1 {[%emt 0:02:11]} c5 {[%emt 0:06:57]} 36. bxc5 {[%emt 0:00:12]} Bxc5 {[%emt 0:00:56]} 37. Nd3 {[%emt 0:02:00]} Bd4 {[%emt 0:00:21]} 38. a5 {[%emt 0:02:08]} Ra8 {[%emt 0:03:32]} 39. a6+ {[%emt 0:00:04]} Rxa6 {[%emt 0:00:16]} 40. Rxa6 {[%emt 0:00:03]} Kxa6 {[%emt 0:00:06]} 41. Kc2 {[%emt 0:30:02]} Kb5 {[%emt 0:31:27]} 42. Kb3 {[%emt 0:00:05]} Ba1 {[%emt 0:02:26]} 43. Nb4 {[%emt 0:00:00]} Kc5 {[%emt 0:00:00]} 44. Nc2 {[%emt 0:00:00]} Bd4 {[%emt 0:00:00]} 45. Ne1 {[%emt 0:00:00]} Kc6 {[%emt 0:00:00]} 46. Nd3 {[%emt 0:00:00]} Kb5 {[%emt 0:00:00]} 47. Nb4 {[%emt 0:00:00]} Bc5 {[%emt 0:00:00]} 48. Nd5 {[%emt 0:00:00]} Bd6 {[%emt 0:00:00]} 49. Nf6 {[%emt 0:00:00]} h4 {[%emt 0:00:00]} 50. Ne8 {[%emt 0:00:00]} Kc5 {[%emt 0:00:00]} 51. Kc3 {[%emt 0:00:00]} Kc6 {[%emt 0:00:00]} 52. Nf6 {[%emt 0:00:00]} b5 {[%emt 0:00:00]} 53. Nd5 {[%emt 0:01:17]} Kc5 {[%emt 0:00:00]} 54. Nb4 {[%emt 0:00:29]} Kb6 {[%emt 0:00:00]} 55. Nd3 {[%emt 0:03:24]} Ka6 {[%emt 0:04:47]} 56. Kb3 {[%emt 0:02:37]} Kb7 {[%emt 0:00:06]} 57. Kc3 {[%emt 0:00:12]} Kc7 {[%emt 0:00:13]} 58. Kb3 {[%emt 0:00:07]} Kb6 {[%emt 0:02:07]} 59. Kc3 {[%emt 0:00:07]} Ka5 {[%emt 0:00:12]} 60. Kb3 {[%emt 0:00:03]} b4 {[%emt 0:06:10]} 61. Nb2 {[%emt 0:00:31]} Kb5 {[%emt 0:00:16]} 62. Nd3 {[%emt 0:00:05]} Be7 {[%emt 0:03:51]} 63. Nxe5 {[%emt 0:02:07]} Kc5 {[%emt 0:00:01]} 64. Nd3+ {[%emt 0:02:13]} Kd4 {[%emt 0:00:26]} 65. Nxb4 {[%emt 0:00:05]} Bf8 {[%emt 0:00:15]} 66. Nd5 {[%emt 0:00:45]} Kd3 {[%emt 0:00:07]} 67. Nf6 {[%emt 0:01:01]} Ke2 {[%emt 0:00:53]} 68. e5 {[%emt 0:01:25]} Kf1 {[%emt 0:00:30]} 69. Nh7 {[%emt 0:01:29]} Be7 {[%emt 0:00:06]} 70. Kc4 {[%emt 0:00:10]} Kxg2 {[%emt 0:00:09]} 71. Kd5 {[%emt 0:00:04]} g4 {[%emt 0:01:31]} 72. fxg4 {[%emt 0:01:30]} f3 {[%emt 0:00:17]} 73. Ke6 {[%emt 0:00:31]} Ba3 {[%emt 0:03:23]} 74. g5 {[%emt 0:00:36]} f2 {[%emt 0:00:05]} 75. g6 {[%emt 0:00:03]} f1=Q {[%emt 0:00:13]} 76. g7 {[%emt 0:00:05]} Qc4+ {[%emt 0:00:16]} 77. Kf6 {[%emt 0:00:16]} Qg8 {[%emt 0:00:56]} 78. Ng5 {[%emt 0:01:25]} Be7+ {[%emt 0:00:43]} 79. Kxe7 {[%emt 0:00:12]} Qxg7+ {[%emt 0:00:04]} 80. Nf7 {[%emt 0:00:03]} Kxh3 {[%emt 0:00:11]} 81. e6 {[%emt 0:00:04]} Kg2 {[%emt 0:00:16]} 82. Kd8 {[%emt 0:00:24]} h3 {[%emt 0:00:13]} 83. Nd6 {[%emt 0:00:13]} h2 {[%emt 0:00:31]} 84. e7 {[%emt 0:00:05]} Qxe7+ {[%emt 0:00:23]} 0-1

[Event "11th Dolomiti Open 2020"]
[Site "Forni di Sopra"]
[Date "2020.10.01"]
[Round "7.4"]
[White "Barp, Alberto"]
[Black "Gumularz, Szymon"]
[Result "0-1"]
[ECO "A49"]
[WhiteElo "2377"]
[BlackElo "2518"]
[Annotator "ChessBase"]
[PlyCount "148"]
[EventDate "2020.09.26"]
[EventType "swiss"]
[EventCountry "ITA"]
[SourceTitle "playchess.com"]
[Source "ChessBase"]
[SourceQuality "1"]
[TimeControl "40/5400+30:1800+30"]

1. d4 {[%emt 0:00:00]} d6 {[%emt 0:00:00]} 2. Nf3 {[%emt 0:01:03]} Nf6 {[%emt 0:00:00]} 3. g3 {[%emt 0:00:35]} g6 {[%emt 0:00:00]} 4. Bg2 {[%emt 0:00:04]} Bg7 {[%emt 0:00:00]} 5. O-O {[%emt 0:05:06]} O-O {[%emt 0:00:20]} 6. b3 {[%emt 0:00:18]} b5 {[%emt 0:00:08]} 7. Ne1 {[%emt 0:01:11]} c6 {[%emt 0:00:19]} 8. Bb2 {[%emt 0:00:57]} Bb7 {[%emt 0:05:17]} 9. Nd2 {[%emt 0:01:05]} Nbd7 {[%emt 0:00:26]} 10. c4 {[%emt 0:08:57]} Qb6 {[%emt 0:03:47]} 11. Nd3 {[%emt 0:01:19]} Rac8 {[%emt 0:18:38]} 12. e4 {[%emt 0:13:14]} Ne8 {[%emt 0:09:03]} 13. e5 {[%emt 0:00:39]} c5 {[%emt 0:05:01]} 14. exd6 {[%emt 0:09:36]} Nxd6 {[%emt 0:07:16]} 15. d5 {[%emt 0:03:45]} Bxb2 {[%emt 0:00:58]} 16. Nxb2 {[%emt 0:00:06]} Nf5 {[%emt 0:03:54]} 17. Nd3 {[%emt 0:06:04]} Rcd8 {[%emt 0:02:04]} 18. Ne4 {[%emt 0:07:47]} e6 {[%emt 0:07:15]} 19. Nf4 {[%emt 0:05:01]} Ne5 {[%emt 0:04:22]} 20. Qc1 {[%emt 0:04:04]} exd5 {[%emt 0:04:16]} 21. cxd5 {[%emt 0:00:53]} Rc8 {[%emt 0:01:13]} 22. Qb2 {[%emt 0:02:06]} Nd4 {[%emt 0:00:48]} 23. Rad1 {[%emt 0:01:56]} f5 {[%emt 0:03:32]} 24. Ng5 {[%emt 0:05:16]} Qf6 {[%emt 0:01:17]} 25. Rxd4 {[%emt 0:00:09]} cxd4 {[%emt 0:00:26]} 26. Nge6 {[%emt 0:02:19]} d3 {[%emt 0:01:03]} 27. Qd4 {[%emt 0:04:37]} Rf7 {[%emt 0:00:52]} 28. Re1 {[%emt 0:02:16]} Ng4 {[%emt 0:11:21]} 29. Qxd3 {[%emt 0:00:36]} Qb2 {[%emt 0:00:15]} 30. Rf1 {[%emt 0:02:07]} a6 {[%emt 0:05:35]} 31. h3 {[%emt 0:02:44]} Nf6 {[%emt 0:00:49]} 32. Qe3 {[%emt 0:00:49]} Re8 {[%emt 0:02:14]} 33. Qb6 {[%emt 0:01:44]} Qe5 {[%emt 0:00:40]} 34. Rd1 {[%emt 0:00:53]} Bc8 {[%emt 0:00:58]} 35. Nd8 {[%emt 0:03:56]} Qc7 {[%emt 0:01:22]} 36. Qxc7 {[%emt 0:00:54]} Rxc7 {[%emt 0:00:03]} 37. Nc6 {[%emt 0:01:18]} Rd7 {[%emt 0:00:37]} 38. d6 {[%emt 0:02:02]} Bb7 {[%emt 0:01:13]} 39. Ne7+ {[%emt 0:01:11]} Kf7 {[%emt 0:00:41]} 40. Bxb7 {[%emt 0:00:20]} Rxb7 {[%emt 0:00:34]} 41. Nd3 {[%emt 0:05:27]} Rd8 {[%emt 0:08:44]} 42. Ne5+ {[%emt 0:04:15]} Ke6 {[%emt 0:15:28]} 43. Re1 {[%emt 0:04:23]} Rxd6 {[%emt 0:01:50]} 44. Nc4+ {[%emt 0:06:43]} Ne4 {[%emt 0:01:55]} 45. Nxd6 {[%emt 0:00:20]} Kxd6 {[%emt 0:00:03]} 46. Ng8 {[%emt 0:00:45]} Rc7 {[%emt 0:00:34]} 47. Re2 {[%emt 0:02:05]} Rc1+ {[%emt 0:02:18]} 48. Kg2 {[%emt 0:00:03]} Ra1 {[%emt 0:01:42]} 49. g4 {[%emt 0:02:07]} Nc3 {[%emt 0:00:09]} 50. Re3 {[%emt 0:00:29]} Nd5 {[%emt 0:00:35]} 51. Rf3 {[%emt 0:01:09]} Rxa2 {[%emt 0:00:38]} 52. gxf5 {[%emt 0:00:52]} gxf5 {[%emt 0:00:04]} 53. Nh6 {[%emt 0:00:42]} f4 {[%emt 0:00:08]} 54. Nf7+ {[%emt 0:02:49]} Kc5 {[%emt 0:00:15]} 55. Ng5 {[%emt 0:00:36]} h6 {[%emt 0:02:02]} 56. Ne6+ {[%emt 0:00:03]} Kb4 {[%emt 0:00:15]} 57. h4 {[%emt 0:01:01]} a5 {[%emt 0:01:38]} 58. h5 {[%emt 0:00:31]} Rb2 {[%emt 0:01:05]} 59. Rd3 {[%emt 0:02:26]} Nc3 {[%emt 0:00:38]} 60. Nd4 {[%emt 0:00:06]} a4 {[%emt 0:00:26]} 61. bxa4 {[%emt 0:01:37]} bxa4 {[%emt 0:00:05]} 62. Nc6+ {[%emt 0:00:54]} Kc4 {[%emt 0:00:04]} 63. Rd4+ {[%emt 0:00:34]} Kc5 {[%emt 0:00:10]} 64. Rxf4 {[%emt 0:00:04]} a3 {[%emt 0:00:10]} 65. Ne5 {[%emt 0:01:10]} a2 {[%emt 0:01:12]} 66. Nd3+ {[%emt 0:00:17]} Kd5 {[%emt 0:00:23]} 67. Nxb2 {[%emt 0:00:20]} a1=Q {[%emt 0:00:04]} 68. Nc4 {[%emt 0:00:24]} Ke6 {[%emt 0:01:22]} 69. Rg4 {[%emt 0:00:59]} Nd5 {[%emt 0:00:14]} 70. Rg6+ {[%emt 0:01:29]} Ke7 {[%emt 0:00:06]} 71. Rg4 {[%emt 0:00:51]} Nf6 {[%emt 0:00:33]} 72. Rg7+ {[%emt 0:00:47]} Kf8 {[%emt 0:00:20]} 73. Rg6 {[%emt 0:00:39]} Nxh5 {[%emt 0:00:10]} 74. Rxh6 {[%emt 0:00:12]} Qg7+ {[%emt 0:00:04]} 0-1

[Event "11th Dolomiti Open 2020"]
[Site "Forni di Sopra"]
[Date "2020.10.01"]
[Round "7.5"]
[White "Cumming, Rhys"]
[Black "Andolfatto, Maria"]
[Result "1-0"]
[ECO "C48"]
[WhiteElo "2299"]
[BlackElo "2002"]
[Annotator "ChessBase"]
[PlyCount "51"]
[EventDate "2020.09.26"]
[EventType "swiss"]
[EventCountry "ITA"]
[SourceTitle "playchess.com"]
[Source "ChessBase"]
[SourceQuality "1"]
[TimeControl "40/5400+30:1800+30"]

1. e4 {[%emt 0:06:30]} e5 {[%emt 0:00:00]} 2. Nf3 {[%emt 0:00:06]} Nc6 {[%emt 0:00:00]} 3. Nc3 {[%emt 0:00:14]} Nf6 {[%emt 0:00:00]} 4. Bb5 {[%emt 0:00:07]} Bd6 {[%emt 0:00:31]} 5. a3 {[%emt 0:00:32]} Nd4 {[%emt 0:02:50]} 6. Bc4 {[%emt 0:05:41]} Nxf3+ {[%emt 0:02:07]} 7. gxf3 {[%emt 0:01:30]} Bc5 {[%emt 0:07:35]} 8. d3 {[%emt 0:06:05]} d6 {[%emt 0:03:04]} 9. Rg1 {[%emt 0:04:08]} Nh5 {[%emt 0:07:40]} 10. Bg5 {[%emt 0:07:49]} Qd7 {[%emt 0:12:05]} 11. f4 {[%emt 0:09:56]} Qh3 {[%emt 0:04:06]} 12. Qd2 {[%emt 0:13:49]} f6 {[%emt 0:06:48]} 13. fxe5 {[%emt 0:03:21]} fxg5 {[%emt 0:13:25]} 14. d4 {[%emt 0:01:51]} dxe5 {[%emt 0:15:10]} 15. dxc5 {[%emt 0:01:00]} Be6 {[%emt 0:09:06]} 16. Bxe6 {[%emt 0:01:48]} Qxe6 {[%emt 0:00:06]} 17. Qxg5 {[%emt 0:00:36]} g6 {[%emt 0:05:04]} 18. Nd5 {[%emt 0:02:07]} Rc8 {[%emt 0:01:39]} 19. O-O-O {[%emt 0:00:46]} Kf7 {[%emt 0:01:07]} 20. Rd3 {[%emt 0:09:43]} c6 {[%emt 0:05:28]} 21. Rf3+ {[%emt 0:00:14]} Ke8 {[%emt 0:00:42]} 22. Nf6+ {[%emt 0:02:13]} Nxf6 {[%emt 0:00:06]} 23. Rxf6 {[%emt 0:00:54]} Qe7 {[%emt 0:00:34]} 24. Rd1 {[%emt 0:02:21]} Rf8 {[%emt 0:01:41]} 25. Qg4 {[%emt 0:00:30]} Qxf6 {[%emt 0:00:41]} 26. Qd7# {[%emt 0:00:07]} 1-0